{"text_format":"3","workbook":"xlsx","n_sheets":4,"sheets":["CILJEVI","DIJETA","VEŽBANJE","Izračunavanja grafikona"],"not_rendered":{"charts":2,"defined_names":19},"read":"whole","date_system":"1900"}

{"sheet":"CILJEVI","index":0,"n_rows":14,"n_cols":11,"rows_kept":14}
[null,{"$f":"TODAY()","v":"2022-12-15"},"CILJEVI",{"$nulls":6},"Vežbanje","Dijeta"]
[null,"DATUM POČETKA","DNEVNIK DIJETE I VEŽBANJA"]
[null,{"$f":"DatumPočetka+121","v":"2023-04-15"},"ANALIZA DIJETE"]
[null,"DATUM ZAVRŠETKA"]
[null,{"v":220,"d":"220.00"}]
[null,"POČETNA TELESNA TEŽINA"]
[null,{"v":180,"d":"180.00"},"ANALIZA VEŽBANJA"]
[null,"KRAJNJA TELESNA TEŽINA"]
[null,{"$f":"PočetnaTelesnaTežina-KrajnjaTelesnaTežina","v":40}]
[null,"CILJNI GUBITAK"]
[null,{"$f":"DatumZavršetka-DatumPočetka","v":121}]
[null,"DANI ZA GUBITAK"]
[null,{"$f":"CiljnaTelesnaTežina/B11","v":{"v":0.3305785123966942,"d":"0.33"}}]
[null,"GUBITAK PO DANU"]

{"sheet":"DIJETA","index":1,"n_rows":19,"n_cols":9,"rows_kept":19}
[null,"DIJETA",{"$nulls":4},"Ciljevi","Vežbanje"]
[null,{"$f":"Podnaslov","v":"DNEVNIK DIJETE I VEŽBANJA"}]
[null,"DATUM","VREME","OPIS","KALORIJE","UGLJENI HIDRATI","PROTEINI","MAST","BELEŠKE"]
[null,{"$f":"DatumPočetka","v":"2022-12-15"},"07:00:00","Kafa",1,0,0,0,"Jutarnja kafa"]
[null,{"$f":"DatumPočetka","v":"2022-12-15"},"08:00:00","Pecivo",10,10,2,10,"Laki doručak"]
[null,{"$f":"DatumPočetka","v":"2022-12-15"},"12:00:00","Ručak",283,46,18,{"v":3.5,"d":"4"},"Sendvič sa ćuretinom"]
[null,{"$f":"DatumPočetka","v":"2022-12-15"},"19:00:00","Večera",500,42,35,25,"Musaka od krompira"]
[null,{"$f":"DatumPočetka+1","v":"2022-12-16"},"07:00:00","Kafa",1,0,0,0,"Jutarnja kafa"]
[null,{"$f":"DatumPočetka+1","v":"2022-12-16"},"08:00:00","Tost",10,10,2,10,"Laki doručak"]
[null,{"$f":"DatumPočetka+1","v":"2022-12-16"},"12:00:00","Ručak",189,26,3,8,"Sendvič"]
[null,{"$f":"DatumPočetka+1","v":"2022-12-16"},"19:00:00","Večera",477,62,{"v":13.5,"d":"14"},21,"Večera"]
[null,{"$f":"DatumPočetka+2","v":"2022-12-17"},"07:00:00","Kafa",1,0,0,0,"Jutarnja kafa"]
[null,{"$f":"DatumPočetka+2","v":"2022-12-17"},"08:00:00","Pecivo",245,48,10,{"v":1.5,"d":"2"},"Laki doručak"]
[null,{"$f":"DatumPočetka+2","v":"2022-12-17"},"12:00:00","Ručak",247,11,43,5,"Salata"]
[null,{"$f":"DatumPočetka+2","v":"2022-12-17"},"19:00:00","Večera",456,64,32,22,"Večera"]
[null,{"$f":"DatumPočetka+3","v":"2022-12-18"},"07:00:00","Tost",10,10,2,10,"Laki doručak"]
[null,{"$f":"DatumPočetka+3","v":"2022-12-18"},"10:00:00","Kafa",135,{"v":12.36,"d":"12"},{"v":8.81,"d":"9"},{"v":5.51,"d":"6"},"Kafa sa mlekom"]
[null,{"$f":"DatumPočetka+3","v":"2022-12-18"},"12:15:00","Ručak",184,7,{"v":5.43,"d":"5"},15,"Salata"]
[null,{"$f":"DatumPočetka+5","v":"2022-12-20"},"19:00:00","Večera",477,62,{"v":13.5,"d":"14"},21,"Večera"]

{"sheet":"VEŽBANJE","index":2,"n_rows":20,"n_cols":7,"rows_kept":20}
[null,"VEŽBANJE",{"$nulls":3},"Dijeta","Ciljevi"]
[null,{"$f":"Podnaslov","v":"DNEVNIK DIJETE I VEŽBANJA"}]
[null,"DATUM","TRAJANJE (MIN)","POTROŠENE KALORIJE","BELEŠKE"]
[null,{"$f":"DatumPočetka+4","v":"2022-12-19"},30,120,"Trening na traci za trčanje"]
[null,{"$f":"B4+1","v":"2022-12-20"},60,180,"Aerobik niskog intenziteta"]
[null,{"$f":"B5+1","v":"2022-12-21"},60,350,"Intenzivni trening"]
[null,"2022-12-22",30,150,"Trening na traci za trčanje"]
[null,"2022-12-23",25,125,"Trčanje"]
[null,"2022-12-24",20,285,"Trening na traci za trčanje"]
[null,"2022-12-25",40,205,"Trčanje"]
[null,"2022-12-26",30,335,"Trčanje"]
[null,"2022-12-27",40,175,"Trčanje"]
[null,"2022-12-28",45,325,"Trening na traci za trčanje"]
[null,"2022-12-29",40,270,"Trčanje"]
[null,"2022-12-30",20,295,"Trening na traci za trčanje"]
[null,"2022-12-31",45,350,"Trčanje"]
[null,"2023-01-01",35,320,"Trčanje"]
[null,"2023-01-02",40,290,"Trčanje"]
[null,{"$f":"B18+1","v":"2023-01-03"},25,265,"Trening na traci za trčanje"]
[null,"2023-01-04",20,195,"Trčanje"]

{"sheet":"Izračunavanja grafikona","index":3,"n_rows":36,"n_cols":10,"rows_kept":36,"hidden":true,"merged":[[1,1,1,9],[19,1,19,9]]}
[]
[null,"PODACI ZA PRAVLJENJE GRAFIKONA ANALIZE DIJETE"]
[]
[null,"Početni red",{"$f":"ROW(Dijeta[[#Headers],[DATUM]])+1","v":4},"DATUM","DAN","MAST","PROTEINI","UGLJENI HIDRATI","KALORIJE","Br."]
[null,"Poslednji unos dijete",{"$f":"MATCH(9.99E+307,Dijeta[DATUM])+PočetakRedaDijete-1","v":19},{"$f":"IFERROR(IF(INDEX(Dijeta[],PoslednjiKrajDijete-PočetakRedaDijete-J5,1)<>\"\",INDEX(Dijeta[],PoslednjiKrajDijete-PočetakRedaDijete-J5,1),\"\"),\"\")","v":"2022-12-15"},{"$f":"UPPER(TEXT(D5,\"DDD\"))","v":"ČET"},{"$f":"IFERROR((IF(INDEX(Dijeta[],PoslednjiKrajDijete-PočetakRedaDijete-J5,1)<>\"\",INDEX(Dijeta[],PoslednjiKrajDijete-PočetakRedaDijete-J5,7),NA())),NA())","v":3.5},{"$f":"IFERROR((IF(INDEX(Dijeta[],PoslednjiKrajDijete-PočetakRedaDijete-J5,1)<>\"\",INDEX(Dijeta[],PoslednjiKrajDijete-PočetakRedaDijete-J5,6),NA())),NA())","v":18},{"$f":"IFERROR((IF(INDEX(Dijeta[],PoslednjiKrajDijete-PočetakRedaDijete-J5,1)<>\"\",INDEX(Dijeta[],PoslednjiKrajDijete-PočetakRedaDijete-J5,5),NA())),NA())","v":46},{"$f":"IFERROR((IF(INDEX(Dijeta[],PoslednjiKrajDijete-PočetakRedaDijete-J5,1)<>\"\",INDEX(Dijeta[],PoslednjiKrajDijete-PočetakRedaDijete-J5,4),NA())),NA())","v":283},12]
[{"$nulls":3},{"$f":"IFERROR(IF(INDEX(Dijeta[],PoslednjiKrajDijete-PočetakRedaDijete-J6,1)<>\"\",INDEX(Dijeta[],PoslednjiKrajDijete-PočetakRedaDijete-J6,1),\"\"),\"\")","v":"2022-12-15"},"ČET",{"$f":"IFERROR((IF(INDEX(Dijeta[],PoslednjiKrajDijete-PočetakRedaDijete-J6,1)<>\"\",INDEX(Dijeta[],PoslednjiKrajDijete-PočetakRedaDijete-J6,7),NA())),NA())","v":25},{"$f":"IFERROR((IF(INDEX(Dijeta[],PoslednjiKrajDijete-PočetakRedaDijete-J6,1)<>\"\",INDEX(Dijeta[],PoslednjiKrajDijete-PočetakRedaDijete-J6,6),NA())),NA())","v":35},{"$f":"IFERROR((IF(INDEX(Dijeta[],PoslednjiKrajDijete-PočetakRedaDijete-J6,1)<>\"\",INDEX(Dijeta[],PoslednjiKrajDijete-PočetakRedaDijete-J6,5),NA())),NA())","v":42},{"$f":"IFERROR((IF(INDEX(Dijeta[],PoslednjiKrajDijete-PočetakRedaDijete-J6,1)<>\"\",INDEX(Dijeta[],PoslednjiKrajDijete-PočetakRedaDijete-J6,4),NA())),NA())","v":500},11]
[{"$nulls":3},{"$f":"IFERROR(IF(INDEX(Dijeta[],PoslednjiKrajDijete-PočetakRedaDijete-J7,1)<>\"\",INDEX(Dijeta[],PoslednjiKrajDijete-PočetakRedaDijete-J7,1),\"\"),\"\")","v":"2022-12-16"},"PET",{"$f":"IFERROR((IF(INDEX(Dijeta[],PoslednjiKrajDijete-PočetakRedaDijete-J7,1)<>\"\",INDEX(Dijeta[],PoslednjiKrajDijete-PočetakRedaDijete-J7,7),NA())),NA())","v":0},{"$f":"IFERROR((IF(INDEX(Dijeta[],PoslednjiKrajDijete-PočetakRedaDijete-J7,1)<>\"\",INDEX(Dijeta[],PoslednjiKrajDijete-PočetakRedaDijete-J7,6),NA())),NA())","v":0},{"$f":"IFERROR((IF(INDEX(Dijeta[],PoslednjiKrajDijete-PočetakRedaDijete-J7,1)<>\"\",INDEX(Dijeta[],PoslednjiKrajDijete-PočetakRedaDijete-J7,5),NA())),NA())","v":0},{"$f":"IFERROR((IF(INDEX(Dijeta[],PoslednjiKrajDijete-PočetakRedaDijete-J7,1)<>\"\",INDEX(Dijeta[],PoslednjiKrajDijete-PočetakRedaDijete-J7,4),NA())),NA())","v":1},10]
[{"$nulls":3},{"$f":"IFERROR(IF(INDEX(Dijeta[],PoslednjiKrajDijete-PočetakRedaDijete-J8,1)<>\"\",INDEX(Dijeta[],PoslednjiKrajDijete-PočetakRedaDijete-J8,1),\"\"),\"\")","v":"2022-12-16"},"PET",{"$f":"IFERROR((IF(INDEX(Dijeta[],PoslednjiKrajDijete-PočetakRedaDijete-J8,1)<>\"\",INDEX(Dijeta[],PoslednjiKrajDijete-PočetakRedaDijete-J8,7),NA())),NA())","v":10},{"$f":"IFERROR((IF(INDEX(Dijeta[],PoslednjiKrajDijete-PočetakRedaDijete-J8,1)<>\"\",INDEX(Dijeta[],PoslednjiKrajDijete-PočetakRedaDijete-J8,6),NA())),NA())","v":2},{"$f":"IFERROR((IF(INDEX(Dijeta[],PoslednjiKrajDijete-PočetakRedaDijete-J8,1)<>\"\",INDEX(Dijeta[],PoslednjiKrajDijete-PočetakRedaDijete-J8,5),NA())),NA())","v":10},{"$f":"IFERROR((IF(INDEX(Dijeta[],PoslednjiKrajDijete-PočetakRedaDijete-J8,1)<>\"\",INDEX(Dijeta[],PoslednjiKrajDijete-PočetakRedaDijete-J8,4),NA())),NA())","v":10},9]
[{"$nulls":3},{"$f":"IFERROR(IF(INDEX(Dijeta[],PoslednjiKrajDijete-PočetakRedaDijete-J9,1)<>\"\",INDEX(Dijeta[],PoslednjiKrajDijete-PočetakRedaDijete-J9,1),\"\"),\"\")","v":"2022-12-16"},"PET",{"$f":"IFERROR((IF(INDEX(Dijeta[],PoslednjiKrajDijete-PočetakRedaDijete-J9,1)<>\"\",INDEX(Dijeta[],PoslednjiKrajDijete-PočetakRedaDijete-J9,7),NA())),NA())","v":8},{"$f":"IFERROR((IF(INDEX(Dijeta[],PoslednjiKrajDijete-PočetakRedaDijete-J9,1)<>\"\",INDEX(Dijeta[],PoslednjiKrajDijete-PočetakRedaDijete-J9,6),NA())),NA())","v":3},{"$f":"IFERROR((IF(INDEX(Dijeta[],PoslednjiKrajDijete-PočetakRedaDijete-J9,1)<>\"\",INDEX(Dijeta[],PoslednjiKrajDijete-PočetakRedaDijete-J9,5),NA())),NA())","v":26},{"$f":"IFERROR((IF(INDEX(Dijeta[],PoslednjiKrajDijete-PočetakRedaDijete-J9,1)<>\"\",INDEX(Dijeta[],PoslednjiKrajDijete-PočetakRedaDijete-J9,4),NA())),NA())","v":189},8]
[{"$nulls":3},{"$f":"IFERROR(IF(INDEX(Dijeta[],PoslednjiKrajDijete-PočetakRedaDijete-J10,1)<>\"\",INDEX(Dijeta[],PoslednjiKrajDijete-PočetakRedaDijete-J10,1),\"\"),\"\")","v":"2022-12-16"},"PET",{"$f":"IFERROR((IF(INDEX(Dijeta[],PoslednjiKrajDijete-PočetakRedaDijete-J10,1)<>\"\",INDEX(Dijeta[],PoslednjiKrajDijete-PočetakRedaDijete-J10,7),NA())),NA())","v":21},{"$f":"IFERROR((IF(INDEX(Dijeta[],PoslednjiKrajDijete-PočetakRedaDijete-J10,1)<>\"\",INDEX(Dijeta[],PoslednjiKrajDijete-PočetakRedaDijete-J10,6),NA())),NA())","v":13.5},{"$f":"IFERROR((IF(INDEX(Dijeta[],PoslednjiKrajDijete-PočetakRedaDijete-J10,1)<>\"\",INDEX(Dijeta[],PoslednjiKrajDijete-PočetakRedaDijete-J10,5),NA())),NA())","v":62},{"$f":"IFERROR((IF(INDEX(Dijeta[],PoslednjiKrajDijete-PočetakRedaDijete-J10,1)<>\"\",INDEX(Dijeta[],PoslednjiKrajDijete-PočetakRedaDijete-J10,4),NA())),NA())","v":477},7]
[{"$nulls":3},{"$f":"IFERROR(IF(INDEX(Dijeta[],PoslednjiKrajDijete-PočetakRedaDijete-J11,1)<>\"\",INDEX(Dijeta[],PoslednjiKrajDijete-PočetakRedaDijete-J11,1),\"\"),\"\")","v":"2022-12-17"},"SUB",{"$f":"IFERROR((IF(INDEX(Dijeta[],PoslednjiKrajDijete-PočetakRedaDijete-J11,1)<>\"\",INDEX(Dijeta[],PoslednjiKrajDijete-PočetakRedaDijete-J11,7),NA())),NA())","v":0},{"$f":"IFERROR((IF(INDEX(Dijeta[],PoslednjiKrajDijete-PočetakRedaDijete-J11,1)<>\"\",INDEX(Dijeta[],PoslednjiKrajDijete-PočetakRedaDijete-J11,6),NA())),NA())","v":0},{"$f":"IFERROR((IF(INDEX(Dijeta[],PoslednjiKrajDijete-PočetakRedaDijete-J11,1)<>\"\",INDEX(Dijeta[],PoslednjiKrajDijete-PočetakRedaDijete-J11,5),NA())),NA())","v":0},{"$f":"IFERROR((IF(INDEX(Dijeta[],PoslednjiKrajDijete-PočetakRedaDijete-J11,1)<>\"\",INDEX(Dijeta[],PoslednjiKrajDijete-PočetakRedaDijete-J11,4),NA())),NA())","v":1},6]
[{"$nulls":3},{"$f":"IFERROR(IF(INDEX(Dijeta[],PoslednjiKrajDijete-PočetakRedaDijete-J12,1)<>\"\",INDEX(Dijeta[],PoslednjiKrajDijete-PočetakRedaDijete-J12,1),\"\"),\"\")","v":"2022-12-17"},"SUB",{"$f":"IFERROR((IF(INDEX(Dijeta[],PoslednjiKrajDijete-PočetakRedaDijete-J12,1)<>\"\",INDEX(Dijeta[],PoslednjiKrajDijete-PočetakRedaDijete-J12,7),NA())),NA())","v":1.5},{"$f":"IFERROR((IF(INDEX(Dijeta[],PoslednjiKrajDijete-PočetakRedaDijete-J12,1)<>\"\",INDEX(Dijeta[],PoslednjiKrajDijete-PočetakRedaDijete-J12,6),NA())),NA())","v":10},{"$f":"IFERROR((IF(INDEX(Dijeta[],PoslednjiKrajDijete-PočetakRedaDijete-J12,1)<>\"\",INDEX(Dijeta[],PoslednjiKrajDijete-PočetakRedaDijete-J12,5),NA())),NA())","v":48},{"$f":"IFERROR((IF(INDEX(Dijeta[],PoslednjiKrajDijete-PočetakRedaDijete-J12,1)<>\"\",INDEX(Dijeta[],PoslednjiKrajDijete-PočetakRedaDijete-J12,4),NA())),NA())","v":245},5]
[{"$nulls":3},{"$f":"IFERROR(IF(INDEX(Dijeta[],PoslednjiKrajDijete-PočetakRedaDijete-J13,1)<>\"\",INDEX(Dijeta[],PoslednjiKrajDijete-PočetakRedaDijete-J13,1),\"\"),\"\")","v":"2022-12-17"},"SUB",{"$f":"IFERROR((IF(INDEX(Dijeta[],PoslednjiKrajDijete-PočetakRedaDijete-J13,1)<>\"\",INDEX(Dijeta[],PoslednjiKrajDijete-PočetakRedaDijete-J13,7),NA())),NA())","v":5},{"$f":"IFERROR((IF(INDEX(Dijeta[],PoslednjiKrajDijete-PočetakRedaDijete-J13,1)<>\"\",INDEX(Dijeta[],PoslednjiKrajDijete-PočetakRedaDijete-J13,6),NA())),NA())","v":43},{"$f":"IFERROR((IF(INDEX(Dijeta[],PoslednjiKrajDijete-PočetakRedaDijete-J13,1)<>\"\",INDEX(Dijeta[],PoslednjiKrajDijete-PočetakRedaDijete-J13,5),NA())),NA())","v":11},{"$f":"IFERROR((IF(INDEX(Dijeta[],PoslednjiKrajDijete-PočetakRedaDijete-J13,1)<>\"\",INDEX(Dijeta[],PoslednjiKrajDijete-PočetakRedaDijete-J13,4),NA())),NA())","v":247},4]
[{"$nulls":3},{"$f":"IFERROR(IF(INDEX(Dijeta[],PoslednjiKrajDijete-PočetakRedaDijete-J14,1)<>\"\",INDEX(Dijeta[],PoslednjiKrajDijete-PočetakRedaDijete-J14,1),\"\"),\"\")","v":"2022-12-17"},"SUB",{"$f":"IFERROR((IF(INDEX(Dijeta[],PoslednjiKrajDijete-PočetakRedaDijete-J14,1)<>\"\",INDEX(Dijeta[],PoslednjiKrajDijete-PočetakRedaDijete-J14,7),NA())),NA())","v":22},{"$f":"IFERROR((IF(INDEX(Dijeta[],PoslednjiKrajDijete-PočetakRedaDijete-J14,1)<>\"\",INDEX(Dijeta[],PoslednjiKrajDijete-PočetakRedaDijete-J14,6),NA())),NA())","v":32},{"$f":"IFERROR((IF(INDEX(Dijeta[],PoslednjiKrajDijete-PočetakRedaDijete-J14,1)<>\"\",INDEX(Dijeta[],PoslednjiKrajDijete-PočetakRedaDijete-J14,5),NA())),NA())","v":64},{"$f":"IFERROR((IF(INDEX(Dijeta[],PoslednjiKrajDijete-PočetakRedaDijete-J14,1)<>\"\",INDEX(Dijeta[],PoslednjiKrajDijete-PočetakRedaDijete-J14,4),NA())),NA())","v":456},3]
[{"$nulls":3},{"$f":"IFERROR(IF(INDEX(Dijeta[],PoslednjiKrajDijete-PočetakRedaDijete-J15,1)<>\"\",INDEX(Dijeta[],PoslednjiKrajDijete-PočetakRedaDijete-J15,1),\"\"),\"\")","v":"2022-12-18"},"NED",{"$f":"IFERROR((IF(INDEX(Dijeta[],PoslednjiKrajDijete-PočetakRedaDijete-J15,1)<>\"\",INDEX(Dijeta[],PoslednjiKrajDijete-PočetakRedaDijete-J15,7),NA())),NA())","v":10},{"$f":"IFERROR((IF(INDEX(Dijeta[],PoslednjiKrajDijete-PočetakRedaDijete-J15,1)<>\"\",INDEX(Dijeta[],PoslednjiKrajDijete-PočetakRedaDijete-J15,6),NA())),NA())","v":2},{"$f":"IFERROR((IF(INDEX(Dijeta[],PoslednjiKrajDijete-PočetakRedaDijete-J15,1)<>\"\",INDEX(Dijeta[],PoslednjiKrajDijete-PočetakRedaDijete-J15,5),NA())),NA())","v":10},{"$f":"IFERROR((IF(INDEX(Dijeta[],PoslednjiKrajDijete-PočetakRedaDijete-J15,1)<>\"\",INDEX(Dijeta[],PoslednjiKrajDijete-PočetakRedaDijete-J15,4),NA())),NA())","v":10},2]
[{"$nulls":3},{"$f":"IFERROR(IF(INDEX(Dijeta[],PoslednjiKrajDijete-PočetakRedaDijete-J16,1)<>\"\",INDEX(Dijeta[],PoslednjiKrajDijete-PočetakRedaDijete-J16,1),\"\"),\"\")","v":"2022-12-18"},"NED",{"$f":"IFERROR((IF(INDEX(Dijeta[],PoslednjiKrajDijete-PočetakRedaDijete-J16,1)<>\"\",INDEX(Dijeta[],PoslednjiKrajDijete-PočetakRedaDijete-J16,7),NA())),NA())","v":5.51},{"$f":"IFERROR((IF(INDEX(Dijeta[],PoslednjiKrajDijete-PočetakRedaDijete-J16,1)<>\"\",INDEX(Dijeta[],PoslednjiKrajDijete-PočetakRedaDijete-J16,6),NA())),NA())","v":8.81},{"$f":"IFERROR((IF(INDEX(Dijeta[],PoslednjiKrajDijete-PočetakRedaDijete-J16,1)<>\"\",INDEX(Dijeta[],PoslednjiKrajDijete-PočetakRedaDijete-J16,5),NA())),NA())","v":12.36},{"$f":"IFERROR((IF(INDEX(Dijeta[],PoslednjiKrajDijete-PočetakRedaDijete-J16,1)<>\"\",INDEX(Dijeta[],PoslednjiKrajDijete-PočetakRedaDijete-J16,4),NA())),NA())","v":135},1]
[{"$nulls":3},{"$f":"IFERROR(IF(INDEX(Dijeta[],PoslednjiKrajDijete-PočetakRedaDijete-J17,1)<>\"\",INDEX(Dijeta[],PoslednjiKrajDijete-PočetakRedaDijete-J17,1),\"\"),\"\")","v":"2022-12-18"},"NED",{"$f":"IFERROR((IF(INDEX(Dijeta[],PoslednjiKrajDijete-PočetakRedaDijete-J17,1)<>\"\",INDEX(Dijeta[],PoslednjiKrajDijete-PočetakRedaDijete-J17,7),NA())),NA())","v":15},{"$f":"IFERROR((IF(INDEX(Dijeta[],PoslednjiKrajDijete-PočetakRedaDijete-J17,1)<>\"\",INDEX(Dijeta[],PoslednjiKrajDijete-PočetakRedaDijete-J17,6),NA())),NA())","v":5.43},{"$f":"IFERROR((IF(INDEX(Dijeta[],PoslednjiKrajDijete-PočetakRedaDijete-J17,1)<>\"\",INDEX(Dijeta[],PoslednjiKrajDijete-PočetakRedaDijete-J17,5),NA())),NA())","v":7},{"$f":"IFERROR((IF(INDEX(Dijeta[],PoslednjiKrajDijete-PočetakRedaDijete-J17,1)<>\"\",INDEX(Dijeta[],PoslednjiKrajDijete-PočetakRedaDijete-J17,4),NA())),NA())","v":184},0]
[{"$nulls":3},{"$f":"IFERROR(IF(INDEX(Dijeta[],PoslednjiKrajDijete-PočetakRedaDijete-J18,1)<>\"\",INDEX(Dijeta[],PoslednjiKrajDijete-PočetakRedaDijete-J18,1)),\"\")","v":"2022-12-20"},"UTO",{"$f":"IFERROR((IF(INDEX(Dijeta[],PoslednjiKrajDijete-PočetakRedaDijete-J18,1)<>\"\",INDEX(Dijeta[],PoslednjiKrajDijete-PočetakRedaDijete-J18,7),NA())),NA())","v":21},{"$f":"IFERROR((IF(INDEX(Dijeta[],PoslednjiKrajDijete-PočetakRedaDijete-J18,1)<>\"\",INDEX(Dijeta[],PoslednjiKrajDijete-PočetakRedaDijete-J18,6),NA())),NA())","v":13.5},{"$f":"IFERROR((IF(INDEX(Dijeta[],PoslednjiKrajDijete-PočetakRedaDijete-J18,1)<>\"\",INDEX(Dijeta[],PoslednjiKrajDijete-PočetakRedaDijete-J18,5),NA())),NA())","v":62},{"$f":"IFERROR((IF(INDEX(Dijeta[],PoslednjiKrajDijete-PočetakRedaDijete-J18,1)<>\"\",INDEX(Dijeta[],PoslednjiKrajDijete-PočetakRedaDijete-J18,4),NA())),NA())","v":477},-1]
[]
[null,"PODACI ZA PRAVLJENJE GRAFIKONA ANALIZE VEŽBANJA"]
[]
[null,"Početni red",{"$f":"ROW(Vežbanje[[#Headers],[DATUM]])+1","v":4},"DATUM","DAN","TRAJANJE (MIN)","POTROŠENE KALORIJE","Br."]
[null,"Poslednji unos vežbanja",{"$f":"MATCH(9.99E+307,Vežbanje[DATUM])+PočetakRedaVežbanja-1","v":20},{"$f":"IFERROR(IF(INDEX(Vežbanje[],KrajPoslednjegVežbanja-PočetakRedaVežbanja-H23,1)<>\"\",INDEX(Vežbanje[],KrajPoslednjegVežbanja-PočetakRedaVežbanja-H23,1)),\"\")","v":"2023-01-04"},{"$f":"UPPER(TEXT(D23,\"DDD\"))","v":"SRE"},{"$f":"IFERROR((IF(INDEX(Vežbanje[],KrajPoslednjegVežbanja-PočetakRedaVežbanja-H23,1)<>\"\",INDEX(Vežbanje[],KrajPoslednjegVežbanja-PočetakRedaVežbanja-H23,2),0)),0)","v":20},{"$f":"IFERROR((IF(INDEX(Vežbanje[],KrajPoslednjegVežbanja-PočetakRedaVežbanja-H23,2)<>\"\",INDEX(Vežbanje[],KrajPoslednjegVežbanja-PočetakRedaVežbanja-H23,3),0)),0)","v":195},-1]
[{"$nulls":3},{"$f":"IFERROR(IF(INDEX(Vežbanje[],KrajPoslednjegVežbanja-PočetakRedaVežbanja-H24,1)<>\"\",INDEX(Vežbanje[],KrajPoslednjegVežbanja-PočetakRedaVežbanja-H24,1)),\"\")","v":"2023-01-03"},"UTO",{"$f":"IFERROR((IF(INDEX(Vežbanje[],KrajPoslednjegVežbanja-PočetakRedaVežbanja-H24,1)<>\"\",INDEX(Vežbanje[],KrajPoslednjegVežbanja-PočetakRedaVežbanja-H24,2),0)),0)","v":25},{"$f":"IFERROR((IF(INDEX(Vežbanje[],KrajPoslednjegVežbanja-PočetakRedaVežbanja-H24,2)<>\"\",INDEX(Vežbanje[],KrajPoslednjegVežbanja-PočetakRedaVežbanja-H24,3),0)),0)","v":265},0]
[{"$nulls":3},{"$f":"IFERROR(IF(INDEX(Vežbanje[],KrajPoslednjegVežbanja-PočetakRedaVežbanja-H25,1)<>\"\",INDEX(Vežbanje[],KrajPoslednjegVežbanja-PočetakRedaVežbanja-H25,1)),\"\")","v":"2023-01-02"},"PON",{"$f":"IFERROR((IF(INDEX(Vežbanje[],KrajPoslednjegVežbanja-PočetakRedaVežbanja-H25,1)<>\"\",INDEX(Vežbanje[],KrajPoslednjegVežbanja-PočetakRedaVežbanja-H25,2),0)),0)","v":40},{"$f":"IFERROR((IF(INDEX(Vežbanje[],KrajPoslednjegVežbanja-PočetakRedaVežbanja-H25,2)<>\"\",INDEX(Vežbanje[],KrajPoslednjegVežbanja-PočetakRedaVežbanja-H25,3),0)),0)","v":290},1]
[{"$nulls":3},{"$f":"IFERROR(IF(INDEX(Vežbanje[],KrajPoslednjegVežbanja-PočetakRedaVežbanja-H26,1)<>\"\",INDEX(Vežbanje[],KrajPoslednjegVežbanja-PočetakRedaVežbanja-H26,1)),\"\")","v":"2023-01-01"},"NED",{"$f":"IFERROR((IF(INDEX(Vežbanje[],KrajPoslednjegVežbanja-PočetakRedaVežbanja-H26,1)<>\"\",INDEX(Vežbanje[],KrajPoslednjegVežbanja-PočetakRedaVežbanja-H26,2),0)),0)","v":35},{"$f":"IFERROR((IF(INDEX(Vežbanje[],KrajPoslednjegVežbanja-PočetakRedaVežbanja-H26,2)<>\"\",INDEX(Vežbanje[],KrajPoslednjegVežbanja-PočetakRedaVežbanja-H26,3),0)),0)","v":320},2]
[{"$nulls":3},{"$f":"IFERROR(IF(INDEX(Vežbanje[],KrajPoslednjegVežbanja-PočetakRedaVežbanja-H27,1)<>\"\",INDEX(Vežbanje[],KrajPoslednjegVežbanja-PočetakRedaVežbanja-H27,1)),\"\")","v":"2022-12-31"},"SUB",{"$f":"IFERROR((IF(INDEX(Vežbanje[],KrajPoslednjegVežbanja-PočetakRedaVežbanja-H27,1)<>\"\",INDEX(Vežbanje[],KrajPoslednjegVežbanja-PočetakRedaVežbanja-H27,2),0)),0)","v":45},{"$f":"IFERROR((IF(INDEX(Vežbanje[],KrajPoslednjegVežbanja-PočetakRedaVežbanja-H27,2)<>\"\",INDEX(Vežbanje[],KrajPoslednjegVežbanja-PočetakRedaVežbanja-H27,3),0)),0)","v":350},3]
[{"$nulls":3},{"$f":"IFERROR(IF(INDEX(Vežbanje[],KrajPoslednjegVežbanja-PočetakRedaVežbanja-H28,1)<>\"\",INDEX(Vežbanje[],KrajPoslednjegVežbanja-PočetakRedaVežbanja-H28,1)),\"\")","v":"2022-12-30"},"PET",{"$f":"IFERROR((IF(INDEX(Vežbanje[],KrajPoslednjegVežbanja-PočetakRedaVežbanja-H28,1)<>\"\",INDEX(Vežbanje[],KrajPoslednjegVežbanja-PočetakRedaVežbanja-H28,2),0)),0)","v":20},{"$f":"IFERROR((IF(INDEX(Vežbanje[],KrajPoslednjegVežbanja-PočetakRedaVežbanja-H28,2)<>\"\",INDEX(Vežbanje[],KrajPoslednjegVežbanja-PočetakRedaVežbanja-H28,3),0)),0)","v":295},4]
[{"$nulls":3},{"$f":"IFERROR(IF(INDEX(Vežbanje[],KrajPoslednjegVežbanja-PočetakRedaVežbanja-H29,1)<>\"\",INDEX(Vežbanje[],KrajPoslednjegVežbanja-PočetakRedaVežbanja-H29,1)),\"\")","v":"2022-12-29"},"ČET",{"$f":"IFERROR((IF(INDEX(Vežbanje[],KrajPoslednjegVežbanja-PočetakRedaVežbanja-H29,1)<>\"\",INDEX(Vežbanje[],KrajPoslednjegVežbanja-PočetakRedaVežbanja-H29,2),0)),0)","v":40},{"$f":"IFERROR((IF(INDEX(Vežbanje[],KrajPoslednjegVežbanja-PočetakRedaVežbanja-H29,2)<>\"\",INDEX(Vežbanje[],KrajPoslednjegVežbanja-PočetakRedaVežbanja-H29,3),0)),0)","v":270},5]
[{"$nulls":3},{"$f":"IFERROR(IF(INDEX(Vežbanje[],KrajPoslednjegVežbanja-PočetakRedaVežbanja-H30,1)<>\"\",INDEX(Vežbanje[],KrajPoslednjegVežbanja-PočetakRedaVežbanja-H30,1)),\"\")","v":"2022-12-28"},"SRE",{"$f":"IFERROR((IF(INDEX(Vežbanje[],KrajPoslednjegVežbanja-PočetakRedaVežbanja-H30,1)<>\"\",INDEX(Vežbanje[],KrajPoslednjegVežbanja-PočetakRedaVežbanja-H30,2),0)),0)","v":45},{"$f":"IFERROR((IF(INDEX(Vežbanje[],KrajPoslednjegVežbanja-PočetakRedaVežbanja-H30,2)<>\"\",INDEX(Vežbanje[],KrajPoslednjegVežbanja-PočetakRedaVežbanja-H30,3),0)),0)","v":325},6]
[{"$nulls":3},{"$f":"IFERROR(IF(INDEX(Vežbanje[],KrajPoslednjegVežbanja-PočetakRedaVežbanja-H31,1)<>\"\",INDEX(Vežbanje[],KrajPoslednjegVežbanja-PočetakRedaVežbanja-H31,1)),\"\")","v":"2022-12-27"},"UTO",{"$f":"IFERROR((IF(INDEX(Vežbanje[],KrajPoslednjegVežbanja-PočetakRedaVežbanja-H31,1)<>\"\",INDEX(Vežbanje[],KrajPoslednjegVežbanja-PočetakRedaVežbanja-H31,2),0)),0)","v":40},{"$f":"IFERROR((IF(INDEX(Vežbanje[],KrajPoslednjegVežbanja-PočetakRedaVežbanja-H31,2)<>\"\",INDEX(Vežbanje[],KrajPoslednjegVežbanja-PočetakRedaVežbanja-H31,3),0)),0)","v":175},7]
[{"$nulls":3},{"$f":"IFERROR(IF(INDEX(Vežbanje[],KrajPoslednjegVežbanja-PočetakRedaVežbanja-H32,1)<>\"\",INDEX(Vežbanje[],KrajPoslednjegVežbanja-PočetakRedaVežbanja-H32,1)),\"\")","v":"2022-12-26"},"PON",{"$f":"IFERROR((IF(INDEX(Vežbanje[],KrajPoslednjegVežbanja-PočetakRedaVežbanja-H32,1)<>\"\",INDEX(Vežbanje[],KrajPoslednjegVežbanja-PočetakRedaVežbanja-H32,2),0)),0)","v":30},{"$f":"IFERROR((IF(INDEX(Vežbanje[],KrajPoslednjegVežbanja-PočetakRedaVežbanja-H32,2)<>\"\",INDEX(Vežbanje[],KrajPoslednjegVežbanja-PočetakRedaVežbanja-H32,3),0)),0)","v":335},8]
[{"$nulls":3},{"$f":"IFERROR(IF(INDEX(Vežbanje[],KrajPoslednjegVežbanja-PočetakRedaVežbanja-H33,1)<>\"\",INDEX(Vežbanje[],KrajPoslednjegVežbanja-PočetakRedaVežbanja-H33,1)),\"\")","v":"2022-12-25"},"NED",{"$f":"IFERROR((IF(INDEX(Vežbanje[],KrajPoslednjegVežbanja-PočetakRedaVežbanja-H33,1)<>\"\",INDEX(Vežbanje[],KrajPoslednjegVežbanja-PočetakRedaVežbanja-H33,2),0)),0)","v":40},{"$f":"IFERROR((IF(INDEX(Vežbanje[],KrajPoslednjegVežbanja-PočetakRedaVežbanja-H33,2)<>\"\",INDEX(Vežbanje[],KrajPoslednjegVežbanja-PočetakRedaVežbanja-H33,3),0)),0)","v":205},9]
[{"$nulls":3},{"$f":"IFERROR(IF(INDEX(Vežbanje[],KrajPoslednjegVežbanja-PočetakRedaVežbanja-H34,1)<>\"\",INDEX(Vežbanje[],KrajPoslednjegVežbanja-PočetakRedaVežbanja-H34,1)),\"\")","v":"2022-12-24"},"SUB",{"$f":"IFERROR((IF(INDEX(Vežbanje[],KrajPoslednjegVežbanja-PočetakRedaVežbanja-H34,1)<>\"\",INDEX(Vežbanje[],KrajPoslednjegVežbanja-PočetakRedaVežbanja-H34,2),0)),0)","v":20},{"$f":"IFERROR((IF(INDEX(Vežbanje[],KrajPoslednjegVežbanja-PočetakRedaVežbanja-H34,2)<>\"\",INDEX(Vežbanje[],KrajPoslednjegVežbanja-PočetakRedaVežbanja-H34,3),0)),0)","v":285},10]
[{"$nulls":3},{"$f":"IFERROR(IF(INDEX(Vežbanje[],KrajPoslednjegVežbanja-PočetakRedaVežbanja-H35,1)<>\"\",INDEX(Vežbanje[],KrajPoslednjegVežbanja-PočetakRedaVežbanja-H35,1)),\"\")","v":"2022-12-23"},"PET",{"$f":"IFERROR((IF(INDEX(Vežbanje[],KrajPoslednjegVežbanja-PočetakRedaVežbanja-H35,1)<>\"\",INDEX(Vežbanje[],KrajPoslednjegVežbanja-PočetakRedaVežbanja-H35,2),0)),0)","v":25},{"$f":"IFERROR((IF(INDEX(Vežbanje[],KrajPoslednjegVežbanja-PočetakRedaVežbanja-H35,2)<>\"\",INDEX(Vežbanje[],KrajPoslednjegVežbanja-PočetakRedaVežbanja-H35,3),0)),0)","v":125},11]
[{"$nulls":3},{"$f":"IFERROR(IF(INDEX(Vežbanje[],KrajPoslednjegVežbanja-PočetakRedaVežbanja-H36,1)<>\"\",INDEX(Vežbanje[],KrajPoslednjegVežbanja-PočetakRedaVežbanja-H36,1)),\"\")","v":"2022-12-22"},"ČET",{"$f":"IFERROR((IF(INDEX(Vežbanje[],KrajPoslednjegVežbanja-PočetakRedaVežbanja-H36,1)<>\"\",INDEX(Vežbanje[],KrajPoslednjegVežbanja-PočetakRedaVežbanja-H36,2),0)),0)","v":30},{"$f":"IFERROR((IF(INDEX(Vežbanje[],KrajPoslednjegVežbanja-PočetakRedaVežbanja-H36,2)<>\"\",INDEX(Vežbanje[],KrajPoslednjegVežbanja-PočetakRedaVežbanja-H36,3),0)),0)","v":150},12]